fUSD/lending_fUSD_20240426
["ID","MTS","AMOUNT","RATE_DAILY","PERIOD"]
[323612047,1714122640008,-500.0,0.00012675,2]
[323612048,1714122640017,-1580.2,0.00012675,2]
[323612049,1714122640028,-500.0,0.00012675,2]
[323612050,1714122640037,-640.61,0.00012675,2]
[323612051,1714122640047,-500.0,0.00012675,2]
[323612052,1714122640057,-492.99,0.00012675,2]
[323612053,1714122640067,-673.96,0.00012675,2]
[323612054,1714122640076,-500.0,0.00012675,2]
[323612055,1714122640086,-500.0,0.00012675,2]
[323612056,1714122640095,-508.77695554,0.00012675,2]
[323612057,1714122640104,-500.0,0.00012675,2]
[323612058,1714122640115,-1030.6,0.00012675,2]
[323612059,1714122640125,-500.0,0.00012676,2]
[323612060,1714122640134,-501.91851799,0.00012676,2]
[323612061,1714122640144,-500.0,0.00012676,2]
[323612062,1714122640153,-1021.89,0.00012676,2]
[323612063,1714122640162,-500.0,0.00012676,2]
[323612064,1714122640171,-500.0,0.00012676,2]
[323612065,1714122640181,-603.27,0.00012676,2]
[323612066,1714122640190,-5286.69,0.00012676,2]
[323612067,1714122640198,-500.0,0.00012677,2]
[323612068,1714122640208,-500.0,0.00012677,2]
[323612069,1714122640218,-500.0,0.00012677,2]
[323612070,1714122640228,-500.0,0.00012677,2]
[323612071,1714122640237,-500.0,0.00012677,2]
[323612072,1714122640246,-500.0,0.00012677,2]
[323612073,1714122640256,-155.73224517,0.00012677,2]
[323612074,1714122640265,-427.99633375,0.00012677,2]
[323612075,1714122640274,-500.0,0.00012677,2]
[323612076,1714122640284,-214.0,0.0001269,2]
[323612077,1714122640293,-207.0,0.0001269,2]
[323612078,1714122640303,-1149.96607747,0.00012727,2]
[323612079,1714122640312,-1039.41895175,0.00012727,2]
[323612080,1714122640321,-500.0,0.00012749,2]
[323612081,1714122640330,-500.0,0.00012749,2]
[323612082,1714122640339,-500.0,0.00012749,2]
[323612083,1714122640349,-645.8,0.00012749,2]
[323612084,1714122640359,-500.0,0.00012749,2]
[323612085,1714122640368,-500.0,0.00012749,2]
[323612086,1714122640378,-907.66,0.00012749,2]
[323612087,1714122640388,-500.0,0.00012749,2]
[323612088,1714122640397,-175.96406229,0.00012749,2]
[323612089,1714122640407,-500.0,0.00012749,2]
[323612090,1714122640417,-500.0,0.00012749,2]
[323612091,1714122640427,-500.0,0.00012749,2]
[323612092,1714122640436,-500.0,0.00012749,2]
[323612093,1714122640445,-500.0,0.00012749,2]
[323612094,1714122640454,-500.0,0.00012749,2]
[323612095,1714122640463,-500.0,0.00012749,2]
[323612096,1714122640471,-500.0,0.00012749,2]
[323612097,1714122640480,-1164.73,0.00012749,2]
[323612098,1714122640489,-500.0,0.00012749,2]
[323612099,1714122640498,-26923.87,0.00012749,2]
[323612100,1714122640507,-614.24,0.00012784,2]
[323612101,1714122640517,-1083.65059,0.0001286,2]
[323612102,1714122640526,-471.0,0.00012863,2]
[323612103,1714122640536,-485.0,0.00012863,2]
[323612104,1714122640545,-1000.0,0.00012882,2]
[323612105,1714122640554,-500.0,0.00012882,2]
[323612106,1714122640563,-1000.0,0.00012883,2]
[323612107,1714122640572,-1000.0,0.00012883,2]
[323612108,1714122640581,-500.0,0.00012883,2]
[323612109,1714122640590,-199.99843923,0.000129,2]
[323612110,1714122640600,-214.0,0.0001292,2]
[323612111,1714122640610,-207.0,0.0001292,2]
[323612112,1714122640619,-500.0,0.00012949,2]
[323612113,1714122640627,-14883.77937238,0.00012949,2]
[323612116,1714122642769,-338.72698102,0.00012436,2]
[323612158,1714122645619,-791.32832355,0.00012436,2]
[323612159,1714122645628,-2528.02062762,0.00012949,2]
[323612160,1714122645638,-500.0,0.00012949,2]
[323612161,1714122645647,-649.49,0.00012949,2]
[323612162,1714122645657,-500.0,0.00012949,2]
[323612163,1714122645666,-500.0,0.00012949,2]
[323612164,1714122645675,-101.61558851,0.00012949,2]
[323612165,1714122645691,-398.38441149,0.00012949,2]
[323612166,1714122645700,-213.93499976,0.00012949,2]
[323612167,1714122645712,-623.31083077,0.00012949,2]
[323612168,1714122645785,-414.37139444,0.00012949,2]
[323612169,1714122645796,-113.59277503,0.00012949,2]
[323612170,1714122645805,-265.69882317,0.00012949,2]
[323612171,1714122645814,-155.9062609,0.00012949,2]
[323612172,1714122645823,-463.82515809,0.00012949,2]
[323612173,1714122645848,-264.85484191,0.00012949,2]
[323612174,1714122645858,-669.46,0.00012949,2]
[323612175,1714122645868,-500.0,0.00012949,2]
[323612176,1714122645877,-500.0,0.00012949,2]
[323612177,1714122645887,-555.04,0.00012949,2]
[323612178,1714122645896,-500.0,0.00012949,2]
[323612179,1714122645907,-569.66,0.00012949,2]
[323612180,1714122645917,-500.0,0.00012949,2]
[323612181,1714122645927,-500.0,0.00012949,2]
[323612182,1714122645936,-500.0,0.00012949,2]
[323612183,1714122645945,-33.18675809,0.00012949,2]
[323612184,1714122645958,-385.40562752,0.00012949,2]
[323612185,1714122645973,-982.45050727,0.00012949,2]
[323612186,1714122645995,-666.53,0.00012949,2]
[323612187,1714122649928,257.49330705,8.555e-05,2]
[323612188,1714122651644,150.0,8.555e-05,2]
[323612189,1714122651669,13353.31768586,8.555e-05,2]
[323612190,1714122666502,150.0,8.555e-05,2]
[323612191,1714122666523,150.0,8.555e-05,2]
[323612192,1714122666543,61.31205977,8.555e-05,2]
[323612193,1714122669927,257.49330705,8.555e-05,2]
[323612194,1714122673520,150.0,8.555e-05,2]
[323612195,1714122673540,150.0,8.555e-05,2]
[323612196,1714122673561,150.0,8.555e-05,2]
[323612197,1714122673581,150.0,8.555e-05,2]
[323612198,1714122673601,150.0,8.555e-05,2]
[323612199,1714122673622,150.0,8.555e-05,2]
[323612200,1714122673643,150.0,8.555e-05,2]
[323612201,1714122673666,3706.280333,8.555e-05,2]
[323612202,1714122674210,256.20943581,8.555e-05,2]
[323612203,1714122674232,63.99175015,8.555e-05,2]
[323612204,1714122685366,150.0,8.555e-05,2]
[323612205,1714122685387,105.74586642,8.555e-05,2]
[323612206,1714122685422,75.68553619,8.555e-05,2]
[323612207,1714122685444,83.76848197,8.555e-05,2]
[323612208,1714122685479,155.21106826,8.555e-05,2]
[323612209,1714122685926,257.49330705,8.555e-05,2]
[323612210,1714122687865,197.98659198,8.555e-05,2]
[323612211,1714122690061,815.95878764,8.555e-05,2]
[323612212,1714122690254,-252.00817799,8.555e-05,2]
[323612213,1714122739159,5643.523375,8.178e-05,2]
[323612214,1714122808430,150.0,8.178e-05,2]
[323612215,1714122808450,107.49330705,8.178e-05,2]
[323612216,1714122808543,42.50669295,8.178e-05,2]
[323612217,1714122808564,150.0,8.178e-05,2]
[323612218,1714122808584,150.0,8.178e-05,2]
[323612219,1714122808603,150.0,8.178e-05,2]
[323612220,1714122808623,150.0,8.178e-05,2]
[323612221,1714122808642,150.0,8.178e-05,2]
[323612222,1714122808663,150.0,8.178e-05,2]
[323612223,1714122808682,150.0,8.178e-05,2]
[323612224,1714122808702,271.09618282,8.178e-05,2]
[323612225,1714122808723,18318.93897868,8.178e-05,2]
[323612226,1714122822537,185.67198827,8.178e-05,2]
[323612227,1714122822557,150.0,8.178e-05,2]
[323612228,1714122822780,150.0,8.178e-05,2]
[323612229,1714122822814,17.63973036,8.178e-05,2]
[323612230,1714122824433,183.84083316,8.178e-05,2]
[323612231,1714122824454,123.56960255,8.178e-05,2]
[323612232,1714122824750,344.64585884,8.178e-05,2]
[323612233,1714122829885,150.0,8.178e-05,2]
[323612234,1714122829906,150.0,8.178e-05,2]
[323612235,1714122829927,131.82418706,8.178e-05,2]
[323612236,1714122838037,18.17581294,8.178e-05,2]
[323612237,1714122838058,255.54990078,8.178e-05,2]
[323612238,1714122838078,150.0,8.178e-05,2]
[323612239,1714122838098,281.82418706,8.178e-05,2]
[323612240,1714122838119,1161.3843349,8.178e-05,2]
[323612241,1714122845886,431.82418706,8.178e-05,2]
[323612242,1714122846431,257.49330705,8.178e-05,2]
[323612243,1714122872459,257.49330705,8.178e-05,2]
[323612248,1714123729806,1675.59222867,8.502e-05,2]
[323612249,1714123734331,641.69726746,8.502e-05,2]
[323612250,1714123743937,210.67786012,8.502e-05,2]
[323612251,1714123754614,186.17414448,8.502e-05,2]
[323612258,1714123831999,-295.37710012,8.505e-05,2]
[323612259,1714123832024,-778.62289988,8.505e-05,2]
[323612260,1714123832034,-32.43379625,8.506e-05,2]
[323612261,1714123832046,-131.54620375,8.506e-05,2]
[323612262,1714123832056,-163.98,8.506e-05,2]
[323612263,1714123832066,-163.98,8.506e-05,2]
[323612264,1714123832075,-163.98,8.506e-05,2]
[323612265,1714123832085,-370.12698549,8.507e-05,2]
[323612266,1714123832094,-344.22,8.662e-05,2]
[323612267,1714123832103,-409.34407034,0.0001,2]
[323612268,1714123832113,-787.42007613,0.00010003,2]
[323612269,1714123832122,-616.8,0.00010004,2]
[323612271,1714123832137,-1142.96,0.00010117,2]
[323612273,1714123832146,-2129.81,0.00010192,2]
[323612275,1714123832154,-150.0,0.00010303,2]
[323612277,1714123832163,-1500.0,0.00010304,2]
[323612279,1714123832173,-1312.62,0.00010357,2]
[323612280,1714123832184,-731.91,0.0001036,2]
[323612281,1714123832193,-400.01,0.00010504,2]
[323612282,1714123832203,-641.69726746,0.00010826,2]
[323612283,1714123832213,-245.69,0.00010827,2]
[323612284,1714123832223,-263.74,0.0001086,2]
[323612285,1714123832232,-344.22,0.00010926,2]
[323612286,1714123832241,-500.0,0.00010959,2]
[323612287,1714123832250,-200.0,0.00011,2]
[323612288,1714123832260,-167.29,0.00011005,2]
[323612289,1714123832269,-210.0,0.00011333,2]
[323612290,1714123832279,-222.86841817,0.00011498,2]
[323612291,1714123832288,-467.63183836,0.00011498,2]
[323612292,1714123832297,-210.35218609,0.00011498,2]
[323612293,1714123832306,-182.04933166,0.00011498,2]
[323612294,1714123832315,-500.0,0.00011499,2]
[323612295,1714123832324,-469.76087575,0.00011499,2]
[323612296,1714123832333,-500.0,0.00011499,2]
[323612297,1714123832341,-979.31,0.00011499,2]
[323612298,1714123832351,-2463.35114241,0.00011499,2]
[323612299,1714123832362,-336.73573406,0.00011499,2]
[323612300,1714123832373,-13160.73312353,0.00011499,2]
[323612301,1714123832382,-427.82399519,0.00011499,2]
[323612302,1714123832394,-72.17600481,0.00011499,2]
[323612303,1714123832403,-595.37,0.00011499,2]
[323612304,1714123832412,-500.0,0.00011499,2]
[323612305,1714123832421,-500.0,0.00011499,2]
[323612306,1714123832431,-500.0,0.00011499,2]
[323612307,1714123832440,-591.98,0.00011499,2]
[323612308,1714123832449,-500.0,0.00011499,2]
[323612309,1714123832458,-500.0,0.00011499,2]
[323612310,1714123832467,-316.31787766,0.00011499,2]
[323612311,1714123832478,-183.68212234,0.00011499,2]
[323612312,1714123832487,-204.46559369,0.00011499,2]
[323612313,1714123832498,-295.53440631,0.00011499,2]
[323612314,1714123832507,-51.36859369,0.00011499,2]
[323612315,1714123832518,-756.27288357,0.00011499,2]
[323612338,1714123838340,-155.50514275,0.00011498,2]
[323612339,1714123838350,-443.80852274,0.00011499,2]
[323612340,1714123838359,-500.0,0.00011499,2]
[323612341,1714123838369,-658.68,0.00011499,2]
[323612342,1714123838378,-500.0,0.00011499,2]
[323612343,1714123838387,-667.96,0.00011499,2]
[323612344,1714123838398,-500.0,0.00011499,2]
[323612345,1714123838408,-188.67,0.00011499,2]
[323612346,1714123838418,-500.0,0.00011499,2]
[323612347,1714123838427,-543.4,0.00011499,2]
[323612348,1714123838438,-98.25666751,0.00011499,2]
[323612352,1714123839942,-515.41333249,0.00011499,2]
[323612353,1714123839952,-522.18,0.00011499,2]
[323612354,1714123839962,-251.60666751,0.00011499,2]
[323612355,1714123839974,-248.39333249,0.00011499,2]
[323612356,1714123839983,-142.84242512,0.00011499,2]
[323612357,1714123839994,-164.21757488,0.00011499,2]
[323612358,1714123840004,-500.0,0.00011499,2]
[323612359,1714123840013,-159.09616733,0.00011499,2]
[323612367,1714123842934,-340.90383267,0.00011499,2]
[323612368,1714123842943,-500.0,0.00011499,2]
[323612369,1714123842952,-508.79,0.00011499,2]
[323612370,1714123842961,-613.91,0.00011499,2]
[323612371,1714123842971,-578.13,0.00011499,2]
[323612372,1714123842980,-500.0,0.00011499,2]
[323612373,1714123842989,-500.0,0.00011499,2]
[323612374,1714123842999,-500.0,0.00011499,2]
[323612375,1714123843008,-2993.77,0.00011499,2]
[323612376,1714123843017,-500.0,0.00011499,2]
[323612377,1714123843026,-500.0,0.00011499,2]
[323612378,1714123843035,-500.0,0.00011499,2]
[323612379,1714123843044,-500.0,0.00011499,2]
[323612380,1714123843053,-1514.36,0.00011499,2]
[323612381,1714123843063,-500.0,0.00011499,2]
[323612382,1714123843073,-5066.41,0.00011499,2]
[323612383,1714123843082,-500.0,0.00011499,2]
[323612384,1714123843092,-438.3,0.00011499,2]
[323612385,1714123843101,-500.0,0.00011499,2]
[323612386,1714123843110,-645.88,0.00011499,2]
[323612387,1714123843119,-1067.66,0.00011499,2]
[323612388,1714123843131,-500.0,0.00011499,2]
[323612389,1714123843142,-500.0,0.00011499,2]
[323612390,1714123843155,-987.66,0.00011499,2]
[323612391,1714123843166,-500.0,0.00011499,2]
[323612392,1714123843178,-24680.22,0.00011499,2]
[323612393,1714123843187,-500.0,0.00011499,2]
[323612394,1714123843197,-174925.1734668,0.000115,5]
[323612395,1714123843221,-282.70577919,0.00011498,2]
[323612396,1714123843231,-26187.87022081,0.000115,5]
[323612397,1714123843243,-659.55849175,0.000115,5]
[323612398,1714123843259,-557.84755322,0.000115,5]
[323612399,1714123843270,-404.90404623,0.000115,5]
[323612400,1714123843295,-6451.6,0.000115,5]
[323612401,1714123843307,-603.2361818,0.000115,5]
[323612433,1714123845946,-641.69726746,0.00011498,2]
[323612434,1714123845955,-1478.48738853,0.00011499,2]
[323612435,1714123846163,-3523.33871929,0.00011499,2]
[323612436,1714123846177,-366.99621194,0.00011499,2]
[323612437,1714123854250,90738.2936714,8.502e-05,2]
[323612441,1714124349288,422.94486465,7.652e-05,2]
[323612442,1714124352875,150.0,8.502e-05,2]
[323612443,1714124352896,150.0,8.502e-05,2]
[323612444,1714124352915,150.0,8.502e-05,2]
[323612445,1714124352935,150.0,8.502e-05,2]
[323612446,1714124352955,150.0,8.502e-05,2]
[323612447,1714124352976,150.0,8.502e-05,2]
[323612448,1714124352996,150.0,8.502e-05,2]
[323612449,1714124353016,214.9866141,8.502e-05,2]
[323612450,1714124353037,6236.72526089,8.502e-05,2]
[323612451,1714124357553,317.89470233,8.502e-05,2]
[323612452,1714124360454,-150.0,8.502e-05,2]
[323612453,1714124360611,-257.33956612,8.502e-05,2]
[323612454,1714124399005,422.83236406,7.652e-05,2]
[323612455,1714124400197,850.999178,8.178e-05,2]
[323612456,1714124401607,1036.9458186,8.501e-05,2]
[323612457,1714124405446,641.69726746,8.501e-05,2]
[323612458,1714124406714,-141.39042901,8.502e-05,2]
[323612459,1714124406735,-151.91842134,8.502e-05,2]
[323612460,1714124421014,230.95316169,7.652e-05,2]
[323612461,1714124425579,539.45421001,8.501e-05,2]
[323612462,1714124454015,866.62469746,8.501e-05,2]
[323612463,1714124456468,365.91209353,8.501e-05,2]
[323612464,1714124461079,-150.0,8.502e-05,2]
[323612465,1714124461274,88873.31458683,8.501e-05,2]
[323612466,1714124461355,7501.71187499,8.501e-05,2]
[323612467,1714124464476,257.49330705,8.501e-05,2]
[323612468,1714124475358,7501.71187499,8.501e-05,2]
[323612469,1714124475857,160.17,8.367e-05,2]
[323612470,1714124476024,395.48709337,8.501e-05,2]
[323612471,1714124476471,365.91209353,8.501e-05,2]
[323612472,1714124484029,-173.10377099,8.502e-05,2]
[323612473,1714124484050,-84.38953606,8.502e-05,2]
[323612474,1714124492472,365.91209353,8.501e-05,2]
[323612475,1714124493357,7501.71187499,8.501e-05,2]
[323612476,1714124495062,-150.0,8.502e-05,2]
[323612478,1714124499482,-126.53590611,8.502e-05,2]
[323612479,1714124504488,84.77615366,8.501e-05,2]
[323612480,1714124504509,172.71715339,8.501e-05,2]
[323612481,1714124512601,365.91209353,8.501e-05,2]
[323612482,1714124516971,361.31205977,8.501e-05,2]
[323612483,1714124517359,4213.37727365,8.501e-05,2]
[323612484,1714124530477,150.0,8.501e-05,2]
[323612485,1714124530499,82.38764864,8.501e-05,2]
[323612486,1714124544490,150.0,8.501e-05,2]
[323612487,1714124544510,63.06819276,8.501e-05,2]
[323612488,1714124549310,86.93180724,8.501e-05,2]
[323612489,1714124549335,150.0,8.501e-05,2]
[323612490,1714124549361,63.06819275,8.501e-05,2]
[323612491,1714124553294,9368.44966317,0.00025,120]
[323612492,1714124611443,86.93180725,8.501e-05,2]
[323612493,1714124611466,150.0,8.501e-05,2]
[323612494,1714124611485,83.26937871,8.501e-05,2]
[323612495,1714124700151,66.73062129,8.261e-05,2]
[323612496,1714124700172,103.05937871,8.261e-05,2]
[323612497,1714124867086,151.0,0.00020469,120]
[323612498,1714124891248,46.94062129,8.376e-05,2]
[323612499,1714124891269,150.0,8.376e-05,2]
[323612500,1714124891289,253.12937871,8.376e-05,2]
[323612501,1714124953850,390.31,0.00025,120]
[323612502,1714124982050,195.16,0.00025,120]
[323612533,1714125032410,-1036.9458186,8.689e-05,2]
[323612534,1714125032420,-539.95294399,8.699e-05,2]
[323612535,1714125032431,-134.58509623,0.0001,2]
[323612536,1714125032445,-273.73420636,0.0001,2]
[323612537,1714125032456,-204.03131332,0.0001,2]
[323612538,1714125032467,-814.31448032,0.00010259,2]
[323612562,1714125038105,-380.17926151,8.688e-05,2]
[323612574,1714125038217,-261.51800595,8.688e-05,2]
[323612576,1714125038228,-643.60551968,0.00010259,2]
[323612578,1714125038238,-250.0,0.00010266,2]
[323612581,1714125038249,-964.65,0.00010266,2]
[323612583,1714125038259,-910.19,0.00010384,2]
[323612585,1714125038269,-1500.0,0.00010388,2]
[323612587,1714125038279,-150.0,0.00010464,2]
[323612589,1714125038290,-150.0,0.00010464,2]
[323612590,1714125038300,-151.42,0.00010465,2]
[323612591,1714125038310,-2440.92,0.00010465,2]
[323612592,1714125038320,-716.56,0.00010597,2]
[323612593,1714125038330,-450.07,0.0001064,2]
[323612594,1714125038340,-246.67,0.00010713,2]
[323612595,1714125038350,-266.03,0.00010839,2]
[323612596,1714125038360,-500.0,0.00010959,2]
[323612597,1714125038371,-166.45,0.0001097,2]
[323612598,1714125038381,-4695.9858856,0.00011,2]
[323612599,1714125038394,-335.85,0.00011076,2]
[323612600,1714125038404,-150.59,0.00011078,2]
[323612601,1714125038414,-1816.71,0.00011096,2]
[323612602,1714125038424,-910.7,0.00011282,2]
[323612603,1714125038435,-536.17,0.00011282,2]
[323612604,1714125038445,-910.7,0.00011282,2]
[323612605,1714125038455,-910.7,0.00011282,2]
[323612606,1714125038465,-910.7,0.00011282,2]
[323612607,1714125038475,-910.7,0.00011282,2]
[323612608,1714125038486,-18062.4253,0.000113,2]
[323612609,1714125038496,-830.00390751,0.000114,2]
[323612610,1714125038508,-1488.86329916,0.000114,2]
[323612612,1714125038524,-1369.29431586,0.000114,2]
[323612613,1714125038536,-6427.80000005,0.000114,2]
[323612614,1714125038549,-32973.24717742,0.000114,2]
[323612615,1714125038561,-897.52374404,0.00011498,2]
[323612616,1714125038571,-749.55466285,0.00011498,2]
[323612617,1714125038582,-354.04719485,0.00011498,2]
[323612618,1714125038592,-444.75919853,0.00011499,2]
[323612619,1714125038604,-406.46100006,0.00011499,2]
[323612620,1714125038615,-500.0,0.00011499,2]
[323612621,1714125038625,-500.0,0.00011499,2]
[323612622,1714125038636,-500.0,0.00011499,2]
[323612623,1714125038646,-566.7270624,0.00011499,2]
[323612624,1714125038656,-501.50195184,0.00011499,2]
[323612625,1714125038667,-397.2016048,0.00011499,2]
[323612626,1714125038677,-1292.1,0.00011499,2]
[323612627,1714125038687,-500.0,0.00011499,2]
[323612628,1714125038697,-500.0,0.00011499,2]
[323612629,1714125038707,-1080.42903,0.00011499,2]
[323612630,1714125038718,-284.80497095,0.00011499,2]
[323612631,1714125038727,-4061.79654657,0.00011499,2]
[323612639,1714125040077,-5451.75176713,0.00011499,2]
[323612640,1714125040091,-5558.5316863,0.00011499,2]
[323612641,1714125040102,-500.0,0.00011499,2]
[323612642,1714125040113,-500.0,0.00011499,2]
[323612643,1714125040123,-938.51,0.00011499,2]
[323612644,1714125040134,-570.56,0.00011499,2]
[323612645,1714125040145,-500.0,0.00011499,2]
[323612646,1714125040155,-500.0,0.00011499,2]
[323612647,1714125040165,-500.0,0.00011499,2]
[323612648,1714125040175,-567.32,0.00011499,2]
[323612649,1714125040186,-500.0,0.00011499,2]
[323612650,1714125040197,-500.0,0.00011499,2]
[323612651,1714125040207,-325.00124562,0.00011499,2]
[323612652,1714125040217,-500.0,0.00011499,2]
[323612653,1714125040228,-1199.3,0.00011499,2]
[323612654,1714125040238,-500.0,0.00011499,2]
[323612655,1714125040248,-804.58,0.00011499,2]
[323612656,1714125040258,-487.06,0.00011499,2]
[323612657,1714125040268,-631.28,0.00011499,2]
[323612658,1714125040278,-500.0,0.00011499,2]
[323612659,1714125040288,-640.13,0.00011499,2]
[323612660,1714125040298,-500.43,0.00011499,2]
[323612661,1714125040309,-500.0,0.00011499,2]
[323612662,1714125040319,-588.1,0.00011499,2]
[323612663,1714125040330,-500.0,0.00011499,2]
[323612664,1714125040341,-630.5968405,0.00011499,2]
[323612665,1714125040351,-500.0,0.00011499,2]
[323612666,1714125040360,-500.0,0.00011499,2]
[323612667,1714125040370,-500.0,0.00011499,2]
[323612668,1714125040379,-500.0,0.00011499,2]
[323612669,1714125040391,-500.0,0.00011499,2]
[323612670,1714125040401,-537.57,0.00011499,2]
[323612671,1714125040411,-554.04,0.00011499,2]
[323612672,1714125040422,-588.33,0.00011499,2]
[323612673,1714125040432,-489.47473614,0.00011499,2]
[323612674,1714125040442,-1451.26,0.00011499,2]
[323612675,1714125040451,-500.0,0.00011499,2]
[323612676,1714125040462,-500.0,0.00011499,2]
[323612677,1714125040472,-500.0,0.00011499,2]
[323612678,1714125040481,-2869.03,0.00011499,2]
[323612679,1714125040491,-500.0,0.00011499,2]
[323612680,1714125040501,-1023.18,0.00011499,2]
[323612681,1714125040511,-567.38,0.00011499,2]
[323612682,1714125040522,-310.22299143,0.00011499,2]
[323612684,1714125040611,-189.77700857,0.00011499,2]
[323612685,1714125040622,-527.71428635,0.00011499,2]
[323612686,1714125040637,-4327.59571365,0.00011499,2]
[323612687,1714125040646,-500.0,0.00011499,2]
[323612688,1714125040657,-500.0,0.00011499,2]
[323612689,1714125040667,-946.51,0.00011499,2]
[323612690,1714125040677,-922.77854308,0.00011499,2]
[323612691,1714125040694,-4138.51515563,0.00011499,2]
[323612692,1714125040707,-1494.232083,0.00011499,2]
[323612693,1714125040718,-1900.43595,0.00011499,2]
[323612694,1714125040731,-435.95000011,0.00011499,2]
[323612699,1714125043069,-1297.39042921,0.00011499,2]
[323612700,1714125043081,-1176.64081656,0.00011499,2]
[323612702,1714125043181,-12285.92702241,0.00011499,2]
[323612703,1714125043191,-500.0,0.00011499,2]
[323612704,1714125043201,-177394.20310116,0.000115,5]
[323612705,1714125043213,-12930.336,0.000115,5]
[323612706,1714125043237,-712.3,0.000115,5]
[323612707,1714125043248,-701.33067573,0.000115,5]
[323612708,1714125043405,-75216.24021742,0.000115,5]
[323612715,1714125046020,-4265.17455051,0.00011499,2]
[323612716,1714125046130,-706.4556972,0.00011499,2]
[323612717,1714125046144,-350.588109,0.00011499,2]
[323612718,1714125046193,-873.88559492,0.00011499,2]
[323612719,1714125046258,-1025.39066466,0.00011499,2]
[323612720,1714125046270,-896.01,0.00011499,2]
[323612721,1714125046296,-818.21269081,0.00011499,2]
[323612728,1714125075612,195.15855152,0.00025,120]
[323612729,1714125128689,151.0,0.00020469,120]
[323612731,1714125283754,150.84228207,0.00015,120]
[323612732,1714125283849,5088.53020256,0.00015,120]
[323612745,1714125403560,34.51145971,8.219e-05,2]
[323612746,1714125403582,293.18225447,8.219e-05,2]
[323612747,1714125403607,153.27628582,8.219e-05,2]
[323612749,1714125683994,151.0,0.00020469,120]
[323612750,1714125918422,151.0,0.00020469,120]
[323612751,1714125945574,456.92,8.219e-05,2]
[323612754,1714126169737,513.0,0.00025,120]
[323612755,1714126222029,151.0,0.00020469,120]
[323612757,1714126232622,-1061.11767721,9.525e-05,2]
[323612758,1714126232633,-79.40624511,9.526e-05,2]
[323612759,1714126232648,-176.10321703,9.526e-05,2]
[323612760,1714126232659,-641.69726746,9.526e-05,2]
[323612761,1714126232669,-363.35615839,9.526e-05,2]
[323612762,1714126232679,-155.0,9.526e-05,2]
[323612763,1714126232689,-268.15183884,9.527e-05,2]
[323612764,1714126232704,-75.30727511,9.527e-05,2]
[323612765,1714126232716,-192.81318554,9.527e-05,2]
[323612766,1714126232727,-155.0,9.528e-05,2]
[323612767,1714126232738,-305.4238308,9.528e-05,2]
[323612768,1714126232750,-262.37214807,9.528e-05,2]
[323612769,1714126232763,-155.0,9.528e-05,2]
[323612770,1714126232774,-376.96785191,9.528e-05,2]
[323612771,1714126232785,-236.8238938,9.528e-05,2]
[323612772,1714126232795,-408.57453561,9.528e-05,2]
[323612773,1714126232807,-155.0,9.528e-05,2]
[323612774,1714126232818,-167.4194243,9.528e-05,2]
[323612775,1714126232829,-155.0,9.529e-05,2]
[323612776,1714126232841,-325.81505107,9.529e-05,2]
[323612777,1714126232853,-313.87560554,9.529e-05,2]
[323612778,1714126232864,-1777.18966215,9.529e-05,2]
[323612779,1714126232875,-1995.45059032,9.53e-05,2]
[323612780,1714126232889,-155.0,9.53e-05,2]
[323612781,1714126232901,-300.0,9.534e-05,2]
[323612782,1714126232912,-1146.22,9.569e-05,2]
[323612783,1714126232924,-1500.0,9.577e-05,2]
[323612784,1714126232936,-154.75,9.819e-05,2]
[323612786,1714126232947,-154.75,9.846e-05,2]
[323612788,1714126232959,-154.75,9.873e-05,2]